[Event "EYTCC Open U18 2022"]
[Site "Thessaloniki"]
[Date "2022.07.13"]
[Round "2.18"]
[White "Marakovits, Nico"]
[Black "Ivanovic, Marko"]
[Result "*"]
[ECO "D31"]
[WhiteElo "2259"]
[BlackElo "2310"]
[Annotator "ChessBase"]
[PlyCount "26"]
[EventDate "2022.07.12"]
[EventType "team-tourn"]
[EventCountry "GRE"]
[SourceTitle "playchess.com"]
[Source "ChessBase"]
[SourceQuality "1"]
[WhiteTeam "Austria"]
[BlackTeam "Serbia"]
[WhiteTeamCountry "AUT"]
[BlackTeamCountry "SRB"]
[TimeControl "40/5400+30:1800+30"]

1. d4 {[%emt 0:00:03]} d5 {[%emt 0:00:11]} 2. c4 {[%emt 0:00:07]} e6 {[%emt 0:00:03]} 3. Nc3 {[%emt 0:00:13]} Bb4 {[%emt 0:00:05]} 4. Nf3 {[%emt 0:04:38]} dxc4 {[%emt 0:00:15]} 5. e3 {[%emt 0:10:46]} b5 {[%emt 0:01:26]} 6. a4 {[%emt 0:01:39]} c6 {[%emt 0:00:08]} 7. Bd2 {[%emt 0:08:23]} a5 {[%emt 0:00:10]} 8. axb5 {[%emt 0:04:53]} Bxc3 {[%emt 0:00:08]} 9. Bxc3 {[%emt 0:05:31]} cxb5 {[%emt 0:00:16]} 10. b3 {[%emt 0:00:46]} Bb7 {[%emt 0:00:06]} 11. bxc4 {[%emt 0:00:17]} b4 {[%emt 0:00:05]} 12. Bb2 {[%emt 0:00:02]} Nf6 {[%emt 0:00:06]} 13. Bd3 {[%emt 0:01:54]} Nbd7 {[%emt 0:01:00]} *

[Event "EYTCC Open U18 2022"]
[Site "Thessaloniki"]
[Date "2022.07.13"]
[Round "2.19"]
[White "Ljepic, Andrej"]
[Black "Pilshofer, Paul"]
[Result "*"]
[ECO "A45"]
[WhiteElo "2234"]
[BlackElo "2223"]
[Annotator "ChessBase"]
[PlyCount "30"]
[EventDate "2022.07.12"]
[EventType "team-tourn"]
[EventCountry "GRE"]
[SourceTitle "playchess.com"]
[Source "ChessBase"]
[SourceQuality "1"]
[WhiteTeam "Serbia"]
[BlackTeam "Austria"]
[WhiteTeamCountry "SRB"]
[BlackTeamCountry "AUT"]
[TimeControl "40/5400+30:1800+30"]

1. d4 {[%emt 0:00:06]} Nf6 {[%emt 0:00:07]} 2. Nc3 {[%emt 0:00:06]} d5 {[%emt 0:00:12]} 3. Bf4 {[%emt 0:00:07]} e6 {[%emt 0:01:07]} 4. e3 {[%emt 0:00:11]} a6 {[%emt 0:01:04]} 5. Bd3 {[%emt 0:00:07]} c5 {[%emt 0:01:19]} 6. dxc5 {[%emt 0:00:15]} Bxc5 {[%emt 0:00:41]} 7. Nf3 {[%emt 0:00:08]} Nc6 {[%emt 0:01:25]} 8. O-O {[%emt 0:00:07]} O-O {[%emt 0:02:14]} 9. e4 {[%emt 0:00:11]} h6 {[%emt 0:08:14]} 10. h3 {[%emt 0:00:12]} Re8 {[%emt 0:02:59]} 11. e5 {[%emt 0:00:07]} Nd7 {[%emt 0:01:02]} 12. Re1 {[%emt 0:00:21]} b5 {[%emt 0:02:00]} 13. Qd2 {[%emt 0:00:54]} Bf8 {[%emt 0:01:28]} 14. a4 {[%emt 0:09:03]} b4 {[%emt 0:00:25]} 15. Ne2 {[%emt 0:00:14]} Nc5 {[%emt 0:05:51]} *

[Event "EYTCC Open U18 2022"]
[Site "Thessaloniki"]
[Date "2022.07.13"]
[Round "2.19"]
[White "Nareks, Matic"]
[Black "Klimkowski, Jan"]
[Result "0-1"]
[ECO "A45"]
[WhiteElo "2221"]
[BlackElo "2398"]
[Annotator "ChessBase"]
[PlyCount "106"]
[EventDate "2022.07.12"]
[EventType "team-tourn"]
[EventCountry "GRE"]
[SourceTitle "playchess.com"]
[Source "ChessBase"]
[SourceQuality "1"]
[WhiteTeam "Slovenia"]
[BlackTeam "Poland"]
[WhiteTeamCountry "SLO"]
[BlackTeamCountry "POL"]
[TimeControl "40/5400+30:1800+30"]

1. d4 {[%emt 0:00:06]} Nf6 {[%emt 0:00:07]} 2. Nc3 {[%emt 0:00:06]} d5 {[%emt 0:00:12]} 3. Bf4 {[%emt 0:00:07]} e6 {[%emt 0:01:07]} 4. e3 {[%emt 0:00:11]} a6 {[%emt 0:01:04]} 5. Bd3 {[%emt 0:00:07]} c5 {[%emt 0:01:19]} 6. dxc5 {[%emt 0:00:15]} Bxc5 {[%emt 0:00:41]} 7. Nf3 {[%emt 0:00:08]} Nc6 {[%emt 0:01:25]} 8. O-O {[%emt 0:00:07]} O-O {[%emt 0:02:14]} 9. e4 {[%emt 0:00:11]} h6 {[%emt 0:08:14]} 10. h3 {[%emt 0:00:12]} Re8 {[%emt 0:02:59]} 11. e5 {[%emt 0:00:07]} Nd7 {[%emt 0:01:02]} 12. Re1 {[%emt 0:00:21]} b5 {[%emt 0:02:00]} 13. Qd2 {[%emt 0:00:54]} Bf8 {[%emt 0:01:28]} 14. a4 {[%emt 0:09:03]} b4 {[%emt 0:00:25]} 15. Ne2 {[%emt 0:00:14]} Nc5 {[%emt 0:05:51]} 16. Ned4 {[%emt 0:05:29]} Bb7 {[%emt 0:01:50]} 17. b3 {[%emt 0:11:50]} Nxd3 {[%emt 0:04:44]} 18. Nxc6 {[%emt 0:02:22]} Bxc6 {[%emt 0:03:22]} 19. Qxd3 {[%emt 0:00:28]} Bb7 {[%emt 0:01:22]} 20. Nd4 {[%emt 0:10:30]} Qh4 {[%emt 0:01:54]} 21. Bg3 {[%emt 0:02:23]} Qh5 {[%emt 0:01:04]} 22. c3 {[%emt 0:17:50]} bxc3 {[%emt 0:09:33]} 23. Qxc3 {[%emt 0:00:12]} Rec8 {[%emt 0:01:39]} 24. Qa5 {[%emt 0:05:55]} Qg5 {[%emt 0:02:12]} 25. Red1 {[%emt 0:01:34]} Bc5 {[%emt 0:03:02]} 26. b4 {[%emt 0:02:18]} Ba7 {[%emt 0:00:09]} 27. b5 {[%emt 0:03:55]} axb5 {[%emt 0:01:43]} 28. Qxb5 {[%emt 0:00:26]} Ba6 {[%emt 0:02:40]} 29. Qb3 {[%emt 0:03:34]} Rab8 {[%emt 0:01:34]} 30. Nb5 {[%emt 0:02:19]} Rc4 {[%emt 0:01:34]} 31. Qf3 {[%emt 0:05:55]} Bxb5 {[%emt 0:03:27]} 32. axb5 {[%emt 0:00:05]} Bc5 {[%emt 0:02:08]} 33. Rab1 {[%emt 0:02:07]} h5 {[%emt 0:02:45]} 34. h4 {[%emt 0:00:58]} Qg6 {[%emt 0:02:55]} 35. Kh2 {[%emt 0:02:03]} Be7 {[%emt 0:01:38]} 36. b6 {[%emt 0:05:46]} Bxh4 {[%emt 0:01:58]} 37. b7 {[%emt 0:04:35]} Bxg3+ {[%emt 0:00:53]} 38. fxg3 {[%emt 0:00:06]} Rc7 {[%emt 0:01:33]} 39. Qa3 {[%emt 0:00:42]} h4 {[%emt 0:09:09]} 40. gxh4 {[%emt 0:00:00]} Qh5 {[%emt 0:00:00]} 41. Qg3 {[%emt 0:16:40]} Rcxb7 {[%emt 0:04:34]} 42. Rxb7 {[%emt 0:00:13]} Rxb7 {[%emt 0:00:03]} 43. Rd4 {[%emt 0:00:07]} Rc7 {[%emt 0:05:43]} 44. Rg4 {[%emt 0:02:09]} Qh6 {[%emt 0:00:11]} 45. Qb3 {[%emt 0:00:28]} Rc8 {[%emt 0:00:39]} 46. Qb7 {[%emt 0:02:03]} Rf8 {[%emt 0:00:27]} 47. Qe7 {[%emt 0:00:21]} Qh5 {[%emt 0:01:20]} 48. Kh3 {[%emt 0:03:46]} Qxe5 {[%emt 0:01:31]} 49. Rg5 {[%emt 0:00:26]} Qf4 {[%emt 0:02:23]} 50. g3 {[%emt 0:00:20]} Qf1+ {[%emt 0:00:27]} 51. Kg4 {[%emt 0:01:14]} Rc8 {[%emt 0:01:42]} 52. Kh5 {[%emt 0:01:09]} Qf3+ {[%emt 0:00:34]} 53. g4 {[%emt 0:00:07]} Qe4 {[%emt 0:00:31]} 0-1

[Event "EYTCC Open U18 2022"]
[Site "Thessaloniki"]
[Date "2022.07.13"]
[Round "2.20"]
[White "Seemann, Jakub"]
[Black "Lavrencic, Matic"]
[Result "0-1"]
[ECO "B40"]
[WhiteElo "2382"]
[BlackElo "2151"]
[Annotator "ChessBase"]
[PlyCount "92"]
[EventDate "2022.07.12"]
[EventType "team-tourn"]
[EventCountry "GRE"]
[SourceTitle "playchess.com"]
[Source "ChessBase"]
[SourceQuality "1"]
[WhiteTeam "Poland"]
[BlackTeam "Slovenia"]
[WhiteTeamCountry "POL"]
[BlackTeamCountry "SLO"]
[TimeControl "40/5400+30:1800+30"]

1. e4 {[%emt 0:00:03]} c5 {[%emt 0:00:18]} 2. Nf3 {[%emt 0:00:09]} e6 {[%emt 0:00:07]} 3. d4 {[%emt 0:00:10]} cxd4 {[%emt 0:00:08]} 4. Nxd4 {[%emt 0:00:06]} Nf6 {[%emt 0:00:06]} 5. Nc3 {[%emt 0:00:07]} Nc6 {[%emt 0:00:06]} 6. Nxc6 {[%emt 0:00:06]} bxc6 {[%emt 0:00:04]} 7. e5 {[%emt 0:00:05]} Nd5 {[%emt 0:00:04]} 8. Ne4 {[%emt 0:00:07]} Qc7 {[%emt 0:00:06]} 9. f4 {[%emt 0:00:05]} Qb6 {[%emt 0:00:05]} 10. c4 {[%emt 0:00:13]} Bb4+ {[%emt 0:00:11]} 11. Ke2 {[%emt 0:00:07]} f5 {[%emt 0:00:44]} 12. Nf2 {[%emt 0:00:09]} Ba6 {[%emt 0:00:26]} 13. Kf3 {[%emt 0:00:05]} Ne7 {[%emt 0:00:09]} 14. Be3 {[%emt 0:00:19]} Bc5 {[%emt 0:00:03]} 15. Bxc5 {[%emt 0:00:11]} Qxc5 {[%emt 0:00:09]} 16. Qd6 {[%emt 0:00:18]} Qa5 {[%emt 0:00:10]} 17. Be2 {[%emt 0:11:00]} g5 {[%emt 0:00:12]} 18. Rhd1 {[%emt 0:23:22]} g4+ {[%emt 0:00:18]} 19. Ke3 {[%emt 0:14:42]} Rd8 {[%emt 0:08:15]} 20. b3 {[%emt 0:10:14]} Nc8 {[%emt 0:17:53]} 21. Qd4 {[%emt 0:03:04]} c5 {[%emt 0:00:44]} 22. Qb2 {[%emt 0:04:38]} Bb7 {[%emt 0:01:04]} 23. h3 {[%emt 0:11:36]} h5 {[%emt 0:02:19]} 24. hxg4 {[%emt 0:00:46]} hxg4 {[%emt 0:00:37]} 25. Rh1 {[%emt 0:05:49]} Ke7 {[%emt 0:01:13]} 26. Rag1 {[%emt 0:06:35]} Qb6 {[%emt 0:03:26]} 27. Qb1 {[%emt 0:02:06]} d5 {[%emt 0:05:42]} 28. Rxh8 {[%emt 0:02:09]} d4+ {[%emt 0:00:51]} 29. Kd2 {[%emt 0:03:13]} Rxh8 {[%emt 0:01:37]} 30. Nd3 {[%emt 0:00:40]} Be4 {[%emt 0:01:00]} 31. Qb2 {[%emt 0:01:30]} Rh2 {[%emt 0:05:27]} 32. Kc1 {[%emt 0:01:10]} a5 {[%emt 0:05:37]} 33. Qd2 {[%emt 0:00:57]} Kd7 {[%emt 0:07:36]} 34. Nb2 {[%emt 0:00:38]} Qb4 {[%emt 0:01:19]} 35. Nd3 {[%emt 0:00:51]} Qxd2+ {[%emt 0:02:04]} 36. Kxd2 {[%emt 0:00:02]} Kc6 {[%emt 0:00:47]} 37. Bf1 {[%emt 0:01:03]} Ne7 {[%emt 0:04:12]} 38. Ke1 {[%emt 0:00:06]} g3 {[%emt 0:02:37]} 39. Nc1 {[%emt 0:00:08]} Ng6 {[%emt 0:00:42]} 40. Ne2 {[%emt 0:00:00]} Nh4 {[%emt 0:00:00]} 41. Nxg3 {[%emt 0:00:44]} Bxg2 {[%emt 0:06:57]} 42. Be2 {[%emt 0:12:58]} d3 {[%emt 0:04:25]} 43. Bxd3 {[%emt 0:01:16]} Nf3+ {[%emt 0:00:14]} 44. Kf2 {[%emt 0:00:02]} Bh1+ {[%emt 0:00:30]} 45. Kf1 {[%emt 0:00:07]} Nxg1 {[%emt 0:00:19]} 46. Kxg1 {[%emt 0:00:04]} Rg2+ {[%emt 0:00:30]} 0-1

[Event "EYTCC Open U18 2022"]
[Site "Thessaloniki"]
[Date "2022.07.13"]
[Round "2.20"]
[White "Guz, Ari"]
[Black "Deuer, Marius"]
[Result "*"]
[ECO "B40"]
[WhiteElo "2331"]
[BlackElo "2338"]
[Annotator "ChessBase"]
[PlyCount "36"]
[EventDate "2022.07.12"]
[EventType "team-tourn"]
[EventCountry "GRE"]
[SourceTitle "playchess.com"]
[Source "ChessBase"]
[SourceQuality "1"]
[WhiteTeam "Israel"]
[BlackTeam "Germany"]
[WhiteTeamCountry "ISR"]
[BlackTeamCountry "GER"]
[TimeControl "40/5400+30:1800+30"]

1. e4 {[%emt 0:00:03]} c5 {[%emt 0:00:18]} 2. Nf3 {[%emt 0:00:09]} e6 {[%emt 0:00:07]} 3. d4 {[%emt 0:00:10]} cxd4 {[%emt 0:00:08]} 4. Nxd4 {[%emt 0:00:06]} Nf6 {[%emt 0:00:06]} 5. Nc3 {[%emt 0:00:07]} Nc6 {[%emt 0:00:06]} 6. Nxc6 {[%emt 0:00:06]} bxc6 {[%emt 0:00:04]} 7. e5 {[%emt 0:00:05]} Nd5 {[%emt 0:00:04]} 8. Ne4 {[%emt 0:00:07]} Qc7 {[%emt 0:00:06]} 9. f4 {[%emt 0:00:05]} Qb6 {[%emt 0:00:05]} 10. c4 {[%emt 0:00:13]} Bb4+ {[%emt 0:00:11]} 11. Ke2 {[%emt 0:00:07]} f5 {[%emt 0:00:44]} 12. Nf2 {[%emt 0:00:09]} Ba6 {[%emt 0:00:26]} 13. Kf3 {[%emt 0:00:05]} Ne7 {[%emt 0:00:09]} 14. Be3 {[%emt 0:00:19]} Bc5 {[%emt 0:00:03]} 15. Bxc5 {[%emt 0:00:11]} Qxc5 {[%emt 0:00:09]} 16. Qd6 {[%emt 0:00:18]} Qa5 {[%emt 0:00:10]} 17. Be2 {[%emt 0:11:00]} g5 {[%emt 0:00:12]} 18. Rhd1 {[%emt 0:23:22]} g4+ {[%emt 0:00:18]} *

[Event "EYTCC Open U18 2022"]
[Site "Thessaloniki"]
[Date "2022.07.13"]
[Round "2.21"]
[White "Bilych, Olexiy"]
[Black "Svane, Frederik"]
[Result "1/2-1/2"]
[ECO "E32"]
[WhiteElo "2365"]
[BlackElo "2521"]
[Annotator "ChessBase"]
[PlyCount "69"]
[EventDate "2022.07.12"]
[EventType "team-tourn"]
[EventCountry "GRE"]
[SourceTitle "playchess.com"]
[Source "ChessBase"]
[SourceQuality "1"]
[WhiteTeam "Ukraine"]
[BlackTeam "Germany"]
[WhiteTeamCountry "UKR"]
[BlackTeamCountry "GER"]
[TimeControl "40/5400+30:1800+30"]

1. d4 {[%emt 0:00:02]} Nf6 {[%emt 0:00:05]} 2. c4 {[%emt 0:00:05]} e6 {[%emt 0:00:05]} 3. Nc3 {[%emt 0:00:04]} Bb4 {[%emt 0:00:09]} 4. Qc2 {[%emt 0:00:05]} O-O {[%emt 0:01:02]} 5. Nf3 {[%emt 0:00:07]} c5 {[%emt 0:00:31]} 6. dxc5 {[%emt 0:00:09]} Na6 {[%emt 0:00:07]} 7. g3 {[%emt 0:00:06]} Nxc5 {[%emt 0:00:27]} 8. Bg2 {[%emt 0:00:06]} Nfe4 {[%emt 0:01:31]} 9. Bd2 {[%emt 0:00:07]} Nxd2 {[%emt 0:00:28]} 10. Nxd2 {[%emt 0:00:05]} Qa5 {[%emt 0:02:10]} 11. Rc1 {[%emt 0:00:28]} Rb8 {[%emt 0:00:06]} 12. O-O {[%emt 0:00:43]} Bxc3 {[%emt 0:00:09]} 13. Qxc3 {[%emt 0:00:09]} Qxc3 {[%emt 0:00:05]} 14. Rxc3 {[%emt 0:00:08]} a5 {[%emt 0:00:06]} 15. Ne4 {[%emt 0:18:10]} b6 {[%emt 0:00:05]} 16. Nd6 {[%emt 0:02:01]} Rd8 {[%emt 0:00:10]} 17. f4 {[%emt 0:09:33]} Kf8 {[%emt 0:02:44]} 18. Rd1 {[%emt 0:00:47]} Ke7 {[%emt 0:05:56]} 19. b3 {[%emt 0:03:51]} Bb7 {[%emt 0:03:07]} 20. Nxb7 {[%emt 0:05:50]} Nxb7 {[%emt 0:00:08]} 21. a3 {[%emt 0:00:28]} Nc5 {[%emt 0:16:14]} 22. b4 {[%emt 0:02:30]} Na6 {[%emt 0:11:20]} 23. Rb1 {[%emt 0:00:25]} Rdc8 {[%emt 0:16:59]} 24. Be4 {[%emt 0:10:27]} d5 {[%emt 0:19:39]} 25. Bd3 {[%emt 0:00:05]} axb4 {[%emt 0:00:16]} 26. axb4 {[%emt 0:00:05]} dxc4 {[%emt 0:00:05]} 27. Rxc4 {[%emt 0:00:05]} Rxc4 {[%emt 0:00:12]} 28. Bxc4 {[%emt 0:00:05]} Nc7 {[%emt 0:00:28]} 29. Ra1 {[%emt 0:04:25]} Ra8 {[%emt 0:01:16]} 30. Rxa8 {[%emt 0:01:08]} Nxa8 {[%emt 0:00:06]} 31. Kf2 {[%emt 0:00:14]} Nc7 {[%emt 0:00:05]} 32. Ke3 {[%emt 0:01:44]} b5 {[%emt 0:01:20]} 33. Bd3 {[%emt 0:00:14]} Nd5+ {[%emt 0:00:07]} 34. Kd4 {[%emt 0:00:08]} Nxb4 {[%emt 0:00:05]} 35. Bxb5 {[%emt 0:00:09]} 1/2-1/2

[Event "EYTCC Open U18 2022"]
[Site "Thessaloniki"]
[Date "2022.07.13"]
[Round "2.21"]
[White "Colbow, Collin"]
[Black "Zemach, Nadav"]
[Result "*"]
[ECO "E32"]
[WhiteElo "2325"]
[BlackElo "2225"]
[Annotator "ChessBase"]
[PlyCount "35"]
[EventDate "2022.07.12"]
[EventType "team-tourn"]
[EventCountry "GRE"]
[SourceTitle "playchess.com"]
[Source "ChessBase"]
[SourceQuality "1"]
[WhiteTeam "Germany"]
[BlackTeam "Israel"]
[WhiteTeamCountry "GER"]
[BlackTeamCountry "ISR"]
[TimeControl "40/5400+30:1800+30"]

1. d4 {[%emt 0:00:02]} Nf6 {[%emt 0:00:05]} 2. c4 {[%emt 0:00:05]} e6 {[%emt 0:00:05]} 3. Nc3 {[%emt 0:00:04]} Bb4 {[%emt 0:00:09]} 4. Qc2 {[%emt 0:00:05]} O-O {[%emt 0:01:02]} 5. Nf3 {[%emt 0:00:07]} c5 {[%emt 0:00:31]} 6. dxc5 {[%emt 0:00:09]} Na6 {[%emt 0:00:07]} 7. g3 {[%emt 0:00:06]} Nxc5 {[%emt 0:00:27]} 8. Bg2 {[%emt 0:00:06]} Nfe4 {[%emt 0:01:31]} 9. Bd2 {[%emt 0:00:07]} Nxd2 {[%emt 0:00:28]} 10. Nxd2 {[%emt 0:00:05]} Qa5 {[%emt 0:02:10]} 11. Rc1 {[%emt 0:00:28]} Rb8 {[%emt 0:00:06]} 12. O-O {[%emt 0:00:43]} Bxc3 {[%emt 0:00:09]} 13. Qxc3 {[%emt 0:00:09]} Qxc3 {[%emt 0:00:05]} 14. Rxc3 {[%emt 0:00:08]} a5 {[%emt 0:00:06]} 15. Ne4 {[%emt 0:18:10]} b6 {[%emt 0:00:05]} 16. Nd6 {[%emt 0:02:01]} Rd8 {[%emt 0:00:10]} 17. f4 {[%emt 0:09:33]} Kf8 {[%emt 0:02:44]} 18. Rd1 {[%emt 0:00:47]} *

[Event "EYTCC Open U18 2022"]
[Site "Thessaloniki"]
[Date "2022.07.13"]
[Round "2.22"]
[White "Koellner, Ruben Gideon"]
[Black "Prokofiev, Valentyn"]
[Result "1/2-1/2"]
[ECO "A48"]
[WhiteElo "2422"]
[BlackElo "2286"]
[Annotator "ChessBase"]
[PlyCount "201"]
[EventDate "2022.07.12"]
[EventType "team-tourn"]
[EventCountry "GRE"]
[SourceTitle "playchess.com"]
[Source "ChessBase"]
[SourceQuality "1"]
[WhiteTeam "Germany"]
[BlackTeam "Ukraine"]
[WhiteTeamCountry "GER"]
[BlackTeamCountry "UKR"]
[TimeControl "40/5400+30:1800+30"]

1. d4 {[%emt 0:00:07]} Nf6 {[%emt 0:00:04]} 2. Nf3 {[%emt 0:00:06]} g6 {[%emt 0:00:04]} 3. Nbd2 {[%emt 0:00:04]} c5 {[%emt 0:00:06]} 4. e3 {[%emt 0:00:22]} Bg7 {[%emt 0:00:07]} 5. dxc5 {[%emt 0:00:07]} Qa5 {[%emt 0:00:10]} 6. a3 {[%emt 0:00:07]} Qxc5 {[%emt 0:00:09]} 7. b4 {[%emt 0:00:10]} Qc7 {[%emt 0:00:06]} 8. Bb2 {[%emt 0:00:04]} d6 {[%emt 0:00:40]} 9. c4 {[%emt 0:00:13]} O-O {[%emt 0:00:20]} 10. Be2 {[%emt 0:00:09]} b6 {[%emt 0:00:17]} 11. O-O {[%emt 0:00:12]} Bb7 {[%emt 0:00:05]} 12. Rc1 {[%emt 0:00:24]} Nbd7 {[%emt 0:00:50]} 13. Qb3 {[%emt 0:01:43]} Rac8 {[%emt 0:02:06]} 14. Rfd1 {[%emt 0:00:38]} Qb8 {[%emt 0:01:29]} 15. Nb1 {[%emt 0:11:00]} Rc7 {[%emt 0:04:20]} 16. Nc3 {[%emt 0:03:42]} a6 {[%emt 0:00:59]} 17. Ng5 {[%emt 0:30:58]} Qa8 {[%emt 0:12:09]} 18. Bf1 {[%emt 0:08:36]} h6 {[%emt 0:28:02]} 19. Nh3 {[%emt 0:00:07]} g5 {[%emt 0:04:36]} 20. f4 {[%emt 0:04:44]} gxf4 {[%emt 0:00:31]} 21. exf4 {[%emt 0:02:59]} Rfc8 {[%emt 0:00:52]} 22. Re1 {[%emt 0:06:37]} Qa7 {[%emt 0:22:49]} 23. Kh1 {[%emt 0:05:44]} Nf8 {[%emt 0:00:46]} 24. Rcd1 {[%emt 0:05:24]} Ng6 {[%emt 0:01:39]} 25. Na4 {[%emt 0:01:38]} b5 {[%emt 0:02:22]} 26. cxb5 {[%emt 0:00:23]} axb5 {[%emt 0:00:01]} 27. Nc3 {[%emt 0:00:37]} Qa8 {[%emt 0:00:51]} 28. Re2 {[%emt 0:09:17]} Bc6 {[%emt 0:02:53]} 29. Re3 {[%emt 0:03:32]} Nh4 {[%emt 0:01:04]} 30. Rd2 {[%emt 0:00:57]} Qb7 {[%emt 0:06:18]} 31. Re1 {[%emt 0:01:16]} Ng4 {[%emt 0:01:54]} 32. Nd1 {[%emt 0:02:57]} Bxb2 {[%emt 0:02:25]} 33. Qg3 {[%emt 0:01:04]} Bd7 {[%emt 0:02:09]} 34. Rxb2 {[%emt 0:00:25]} Ng6 {[%emt 0:00:16]} 35. Nhf2 {[%emt 0:00:59]} Nf6 {[%emt 0:01:24]} 36. Be2 {[%emt 0:00:34]} Kh8 {[%emt 0:01:40]} 37. Bf3 {[%emt 0:00:05]} Qa7 {[%emt 0:00:29]} 38. Ne4 {[%emt 0:00:14]} Qxa3 {[%emt 0:00:30]} 39. Nxf6 {[%emt 0:00:19]} exf6 {[%emt 0:00:06]} 40. f5 {[%emt 0:00:00]} Bxf5 {[%emt 0:00:00]} 41. Qxd6 {[%emt 0:02:01]} Kg7 {[%emt 0:01:48]} 42. Rbe2 {[%emt 0:15:07]} Rd7 {[%emt 0:02:42]} 43. Qg3 {[%emt 0:01:07]} Qxb4 {[%emt 0:00:48]} 44. Rb2 {[%emt 0:01:24]} Qa4 {[%emt 0:02:47]} 45. Ne3 {[%emt 0:01:17]} Be6 {[%emt 0:00:43]} 46. Bg4 {[%emt 0:02:18]} Bxg4 {[%emt 0:01:30]} 47. Nxg4 {[%emt 0:00:41]} Rd1 {[%emt 0:01:34]} 48. Rb1 {[%emt 0:04:05]} Rxb1 {[%emt 0:04:23]} 49. Rxb1 {[%emt 0:00:16]} f5 {[%emt 0:06:55]} 50. Ne3 {[%emt 0:04:27]} f4 {[%emt 0:01:56]} 51. Qh3 {[%emt 0:01:33]} Qe4 {[%emt 0:00:34]} 52. Qf5 {[%emt 0:00:48]} Qc6 {[%emt 0:02:28]} 53. Nf1 {[%emt 0:00:32]} Rb8 {[%emt 0:03:01]} 54. Qd3 {[%emt 0:01:33]} Qc5 {[%emt 0:03:31]} 55. Nd2 {[%emt 0:00:40]} Re8 {[%emt 0:01:23]} 56. Nf3 {[%emt 0:00:52]} b4 {[%emt 0:03:02]} 57. h3 {[%emt 0:00:39]} Kg8 {[%emt 0:01:39]} 58. Qd4 {[%emt 0:00:26]} Qxd4 {[%emt 0:00:36]} 59. Nxd4 {[%emt 0:00:05]} Rb8 {[%emt 0:00:28]} 60. Nc6 {[%emt 0:00:14]} Rb6 {[%emt 0:00:20]} 61. Nxb4 {[%emt 0:00:14]} Nh4 {[%emt 0:00:24]} 62. Rb2 {[%emt 0:01:11]} f3 {[%emt 0:00:42]} 63. gxf3 {[%emt 0:00:06]} Nxf3 {[%emt 0:00:02]} 64. Nd3 {[%emt 0:00:17]} Rd6 {[%emt 0:00:28]} 65. Nf4 {[%emt 0:00:26]} Rd4 {[%emt 0:00:16]} 66. Ne2 {[%emt 0:00:22]} Rh4 {[%emt 0:00:38]} 67. Kg2 {[%emt 0:00:26]} Ng5 {[%emt 0:00:04]} 68. Rb3 {[%emt 0:00:18]} Kg7 {[%emt 0:00:07]} 69. Ng1 {[%emt 0:01:00]} Rf4 {[%emt 0:01:04]} 70. Ne2 {[%emt 0:00:39]} Ra4 {[%emt 0:00:16]} 71. Rb2 {[%emt 0:00:40]} f6 {[%emt 0:01:14]} 72. Ng1 {[%emt 0:00:16]} Rf4 {[%emt 0:00:22]} 73. Ne2 {[%emt 0:00:47]} Rc4 {[%emt 0:00:21]} 74. Ra2 {[%emt 0:01:18]} h5 {[%emt 0:00:10]} 75. Rd2 {[%emt 0:00:39]} Kg6 {[%emt 0:01:21]} 76. Rd3 {[%emt 0:00:26]} Rc2 {[%emt 0:00:35]} 77. Kf1 {[%emt 0:00:14]} Rc4 {[%emt 0:00:31]} 78. Kg2 {[%emt 0:00:11]} Ra4 {[%emt 0:00:10]} 79. Nd4 {[%emt 0:00:40]} Ra2+ {[%emt 0:00:31]} 80. Kg3 {[%emt 0:00:42]} Nf7 {[%emt 0:00:56]} 81. Nf3 {[%emt 0:00:34]} Ne5 {[%emt 0:00:27]} 82. Nxe5+ fxe5 {[%emt 0:00:03]} 83. Rd8 {[%emt 0:00:51]} Kf5 {[%emt 0:00:35]} 84. Rf8+ {[%emt 0:00:34]} Ke4 {[%emt 0:00:14]} 85. Kh4 {[%emt 0:00:05]} Ra3 {[%emt 0:00:25]} 86. Rh8 {[%emt 0:00:28]} Kd4 {[%emt 0:00:22]} 87. Rd8+ {[%emt 0:00:28]} Kc5 {[%emt 0:00:04]} 88. Kxh5 {[%emt 0:00:30]} Rxh3+ {[%emt 0:01:36]} 89. Kg4 {[%emt 0:00:06]} Re3 {[%emt 0:00:02]} 90. Kf5 {[%emt 0:00:10]} Re1 {[%emt 0:00:34]} 91. Rc8+ {[%emt 0:00:29]} Kd5 {[%emt 0:00:16]} 92. Rd8+ {[%emt 0:00:03]} Kc6 {[%emt 0:00:03]} 93. Rd2 {[%emt 0:01:41]} Kc5 {[%emt 0:00:28]} 94. Rd8 {[%emt 0:00:14]} e4 {[%emt 0:00:08]} 95. Kf4 {[%emt 0:00:16]} e3 {[%emt 0:00:44]} 96. Rd3 {[%emt 0:00:19]} e2 {[%emt 0:00:06]} 97. Ke3 {[%emt 0:00:07]} Kc4 {[%emt 0:00:08]} 98. Rd4+ {[%emt 0:00:13]} Kc3 {[%emt 0:00:03]} 99. Rd3+ {[%emt 0:00:03]} Kc2 {[%emt 0:00:07]} 100. Rd2+ {[%emt 0:00:03]} Kc3 {[%emt 0:00:03]} 101. Rxe2 {[%emt 0:00:06]} 1/2-1/2

[Event "EYTCC Open U18 2022"]
[Site "Thessaloniki"]
[Date "2022.07.13"]
[Round "2.22"]
[White "Vagman, Roy"]
[Black "Cherniaiev, Tykhon"]
[Result "*"]
[ECO "A48"]
[WhiteElo "2180"]
[BlackElo "2186"]
[Annotator "ChessBase"]
[PlyCount "31"]
[EventDate "2022.07.12"]
[EventType "team-tourn"]
[EventCountry "GRE"]
[SourceTitle "playchess.com"]
[Source "ChessBase"]
[SourceQuality "1"]
[WhiteTeam "Israel"]
[BlackTeam "Germany"]
[WhiteTeamCountry "ISR"]
[BlackTeamCountry "GER"]
[TimeControl "40/5400+30:1800+30"]

1. d4 {[%emt 0:00:07]} Nf6 {[%emt 0:00:04]} 2. Nf3 {[%emt 0:00:06]} g6 {[%emt 0:00:04]} 3. Nbd2 {[%emt 0:00:04]} c5 {[%emt 0:00:06]} 4. e3 {[%emt 0:00:22]} Bg7 {[%emt 0:00:07]} 5. dxc5 {[%emt 0:00:07]} Qa5 {[%emt 0:00:10]} 6. a3 {[%emt 0:00:07]} Qxc5 {[%emt 0:00:09]} 7. b4 {[%emt 0:00:10]} Qc7 {[%emt 0:00:06]} 8. Bb2 {[%emt 0:00:04]} d6 {[%emt 0:00:40]} 9. c4 {[%emt 0:00:13]} O-O {[%emt 0:00:20]} 10. Be2 {[%emt 0:00:09]} b6 {[%emt 0:00:17]} 11. O-O {[%emt 0:00:12]} Bb7 {[%emt 0:00:05]} 12. Rc1 {[%emt 0:00:24]} Nbd7 {[%emt 0:00:50]} 13. Qb3 {[%emt 0:01:43]} Rac8 {[%emt 0:02:06]} 14. Rfd1 {[%emt 0:00:38]} Qb8 {[%emt 0:01:29]} 15. Nb1 {[%emt 0:11:00]} Rc7 {[%emt 0:04:20]} 16. Nc3 {[%emt 0:03:42]} *